Workbook

Sheet Produktionsanlæg
A1: Produktionsanlæg | B1: Enhed | C1: Standard-levetid | D1: Samlet mængde per 31/12-2014 | E1: Samlet mængde per 31/12-2015 | F1: Bemærk-ninger
A3: Boringer
A4: Boring (inkl. etablering, forerør, filter og prøvepumpning) | B4: dybdemeter | C4: 30 | D4: 1535 | E4: 1535
A5: Råvandsstationer
A6: Råvandsstation komplet montering og boringshus/tørbrønd | B6: stk. | C6: 30 | D6: 35 | E6: 35
A7: Instrumenter (flowmåler+tryk transducer+alarmer) | B7: stk. | C7: 10 | D7: 35 | E7: 35
A8: Pumpe inkl. stigrør og forerørsforsejlinger mv. - 1 | B8: m³/h | C8: 15 | D8: 41 | E8: 41
A9: Pumpe inkl. stigrør og forerørsforsejlinger mv. - 2 | B9: m³/h | C9: 15 | D9: 30 | E9: 30
A10: Pumpe inkl. stigrør og forerørsforsejlinger mv. - 3 | B10: m³/h | C10: 15 | D10: 38 | E10: 38
A11: Pumpe inkl. stigrør og forerørsforsejlinger mv. - 4 | B11: m³/h | C11: 15 | D11: 39 | E11: 39
A12: Pumpe inkl. stigrør og forerørsforsejlinger mv. - 5 | B12: m³/h | C12: 15 | D12: 34 | E12: 34
A13: Pumpe inkl. stigrør og forerørsforsejlinger mv. - 6 | B13: m³/h | C13: 15 | D13: 30 | E13: 30
A14: Pumpe inkl. stigrør og forerørsforsejlinger mv. - 7 | B14: m³/h | C14: 15 | D14: 31 | E14: 31
A15: Pumpe inkl. stigrør og forerørsforsejlinger mv. - 8 | B15: m³/h | C15: 15 | D15: 28 | E15: 28
A16: Pumpe inkl. stigrør og forerørsforsejlinger mv. - 9 | B16: m³/h | C16: 15 | D16: 22 | E16: 22
A17: Pumpe inkl. stigrør og forerørsforsejlinger mv. - 10 | B17: m³/h | C17: 15 | D17: 31 | E17: 31
A18: Pumpe inkl. stigrør og forerørsforsejlinger mv. - 11 | B18: m³/h | C18: 15 | D18: 19 | E18: 19
A19: Pumpe inkl. stigrør og forerørsforsejlinger mv. - 12 | B19: m³/h | C19: 15 | D19: 32 | E19: 32
A20: Pumpe inkl. stigrør og forerørsforsejlinger mv. - 13 | B20: m³/h | C20: 15 | D20: 40 | E20: 40
A21: Pumpe inkl. stigrør og forerørsforsejlinger mv. - 14 | B21: m³/h | C21: 15 | D21: 30 | E21: 30
A22: Pumpe inkl. stigrør og forerørsforsejlinger mv. - 15 | B22: m³/h | C22: 15 | D22: 4 | E22: 4
A23: Pumpe inkl. stigrør og forerørsforsejlinger mv. - 16 | B23: m³/h | C23: 15 | D23: 11 | E23: 11
A24: Pumpe inkl. stigrør og forerørsforsejlinger mv. - 17 | B24: m³/h | C24: 15 | D24: 29 | E24: 29
A25: Pumpe inkl. stigrør og forerørsforsejlinger mv. - 18 | B25: m³/h | C25: 15 | D25: 17 | E25: 17
A26: Pumpe inkl. stigrør og forerørsforsejlinger mv. - 19 | B26: m³/h | C26: 15 | D26: 30 | E26: 30
A27: Pumpe inkl. stigrør og forerørsforsejlinger mv. - 20 | B27: m³/h | C27: 15 | D27: 27 | E27: 27
A28: Pumpe inkl. stigrør og forerørsforsejlinger mv. - 21 | B28: m³/h | C28: 15 | D28: 29 | E28: 29
A29: Pumpe inkl. stigrør og forerørsforsejlinger mv. - 22 | B29: m³/h | C29: 15 | D29: 17 | E29: 17
A30: Pumpe inkl. stigrør og forerørsforsejlinger mv. - 23 | B30: m³/h | C30: 15 | D30: 11 | E30: 11
A31: Pumpe inkl. stigrør og forerørsforsejlinger mv. - 24 | B31: m³/h | C31: 15 | D31: 20 | E31: 20
A32: Pumpe inkl. stigrør og forerørsforsejlinger mv. - 25 | B32: m³/h | C32: 15 | D32: 28 | E32: 28
A33: Pumpe inkl. stigrør og forerørsforsejlinger mv. - 26 | B33: m³/h | C33: 15 | D33: 19 | E33: 19
A34: Pumpe inkl. stigrør og forerørsforsejlinger mv. - 27 | B34: m³/h | C34: 15 | D34: 19 | E34: 19
A35: Pumpe inkl. stigrør og forerørsforsejlinger mv. - 28 | B35: m³/h | C35: 15 | D35: 2 | E35: 2
A36: Pumpe inkl. stigrør og forerørsforsejlinger mv. - 29 | B36: m³/h | C36: 15 | D36: 6 | E36: 6
A37: Pumpe inkl. stigrør og forerørsforsejlinger mv. - 30 | B37: m³/h | C37: 15 | D37: 41 | E37: 41
A38: Pumpe inkl. stigrør og forerørsforsejlinger mv. - 31 | B38: m³/h | C38: 15 | D38: 9 | E38: 9
A39: Pumpe inkl. stigrør og forerørsforsejlinger mv. - 32 | B39: m³/h | C39: 15 | D39: 2 | E39: 2
A40: Pumpe inkl. stigrør og forerørsforsejlinger mv. - 33 | B40: m³/h | C40: 15 | D40: 20 | E40: 20
A41: Pumpe inkl. stigrør og forerørsforsejlinger mv. - 34 | B41: m³/h | C41: 15 | D41: 20 | E41: 20
A42: Pumpe inkl. stigrør og forerørsforsejlinger mv. - 35 | B42: m³/h | C42: 15 | D42: 20 | E42: 20
A43: Pumpe inkl. stigrør og forerørsforsejlinger mv. - 36 | B43: m³/h | C43: 15 | D43: 0 | E43: 0
A44: Pumpe inkl. stigrør og forerørsforsejlinger mv. - 37 | B44: m³/h | C44: 15 | D44: 0 | E44: 0
A45: Pumpe inkl. stigrør og forerørsforsejlinger mv. - 38 | B45: m³/h | C45: 15 | D45: 0 | E45: 0
A46: Pumpe inkl. stigrør og forerørsforsejlinger mv. - 39 | B46: m³/h | C46: 15 | D46: 0 | E46: 0
A47: Pumpe inkl. stigrør og forerørsforsejlinger mv. - 40 | B47: m³/h | C47: 15 | D47: 0 | E47: 0
A48: Pumpe inkl. stigrør og forerørsforsejlinger mv. - 41 | B48: m³/h | C48: 15 | D48: 0 | E48: 0
A49: Pumpe inkl. stigrør og forerørsforsejlinger mv. - 42 | B49: m³/h | C49: 15 | D49: 0 | E49: 0
A50: Pumpe inkl. stigrør og forerørsforsejlinger mv. - 43 | B50: m³/h | C50: 15 | D50: 0 | E50: 0
A51: Pumpe inkl. stigrør og forerørsforsejlinger mv. - 44 | B51: m³/h | C51: 15 | D51: 0 | E51: 0
A52: Pumpe inkl. stigrør og forerørsforsejlinger mv. - 45 | B52: m³/h | C52: 15 | D52: 0 | E52: 0
A53: Pumpe inkl. stigrør og forerørsforsejlinger mv. - 46 | B53: m³/h | C53: 15 | D53: 0 | E53: 0
A54: Pumpe inkl. stigrør og forerørsforsejlinger mv. - 47 | B54: m³/h | C54: 15 | D54: 0 | E54: 0
A55: Pumpe inkl. stigrør og forerørsforsejlinger mv. - 48 | B55: m³/h | C55: 15 | D55: 0 | E55: 0
A56: Pumpe inkl. stigrør og forerørsforsejlinger mv. - 49 | B56: m³/h | C56: 15 | D56: 0 | E56: 0
A57: Pumpe inkl. stigrør og forerørsforsejlinger mv. - 50 | B57: m³/h | C57: 15 | D57: 0 | E57: 0
A58: Pumpe inkl. stigrør og forerørsforsejlinger mv. - 51 | B58: m³/h | C58: 15 | D58: 0 | E58: 0
A59: Pumpe inkl. stigrør og forerørsforsejlinger mv. - 52 | B59: m³/h | C59: 15 | D59: 0 | E59: 0
A60: Pumpe inkl. stigrør og forerørsforsejlinger mv. - 53 | B60: m³/h | C60: 15 | D60: 0 | E60: 0
A61: Pumpe inkl. stigrør og forerørsforsejlinger mv. - 54 | B61: m³/h | C61: 15 | D61: 0 | E61: 0
A62: Pumpe inkl. stigrør og forerørsforsejlinger mv. - 55 | B62: m³/h | C62: 15 | D62: 0 | E62: 0
A63: Pumpe inkl. stigrør og forerørsforsejlinger mv. - 56 | B63: m³/h | C63: 15 | D63: 0 | E63: 0
A64: Pumpe inkl. stigrør og forerørsforsejlinger mv. - 57 | B64: m³/h | C64: 15 | D64: 0 | E64: 0
A65: Pumpe inkl. stigrør og forerørsforsejlinger mv. - 58 | B65: m³/h | C65: 15 | D65: 0 | E65: 0
A66: Pumpe inkl. stigrør og forerørsforsejlinger mv. - 59 | B66: m³/h | C66: 15 | D66: 0 | E66: 0
A67: Pumpe inkl. stigrør og forerørsforsejlinger mv. - 60 | B67: m³/h | C67: 15 | D67: 0 | E67: 0
A68: Pumpe inkl. stigrør og forerørsforsejlinger mv. - 61 | B68: m³/h | C68: 15 | D68: 0 | E68: 0
A69: Pumpe inkl. stigrør og forerørsforsejlinger mv. - 62 | B69: m³/h | C69: 15 | D69: 0 | E69: 0
A70: Pumpe inkl. stigrør og forerørsforsejlinger mv. - 63 | B70: m³/h | C70: 15 | D70: 0 | E70: 0
A71: Pumpe inkl. stigrør og forerørsforsejlinger mv. - 64 | B71: m³/h | C71: 15 | D71: 0 | E71: 0
A72: Pumpe inkl. stigrør og forerørsforsejlinger mv. - 65 | B72: m³/h | C72: 15 | D72: 0 | E72: 0
A73: Pumpe inkl. stigrør og forerørsforsejlinger mv. - 66 | B73: m³/h | C73: 15 | D73: 0 | E73: 0
A74: Pumpe inkl. stigrør og forerørsforsejlinger mv. - 67 | B74: m³/h | C74: 15 | D74: 0 | E74: 0
A75: Pumpe inkl. stigrør og forerørsforsejlinger mv. - 68 | B75: m³/h | C75: 15 | D75: 0 | E75: 0
A76: Pumpe inkl. stigrør og forerørsforsejlinger mv. - 69 | B76: m³/h | C76: 15 | D76: 0 | E76: 0
A77: Pumpe inkl. stigrør og forerørsforsejlinger mv. - 70 | B77: m³/h | C77: 15 | D77: 0 | E77: 0
A78: Pumpe inkl. stigrør og forerørsforsejlinger mv. - 71 | B78: m³/h | C78: 15 | D78: 0 | E78: 0
A79: Pumpe inkl. stigrør og forerørsforsejlinger mv. - 72 | B79: m³/h | C79: 15 | D79: 0 | E79: 0
A80: Pumpe inkl. stigrør og forerørsforsejlinger mv. - 73 | B80: m³/h | C80: 15 | D80: 0 | E80: 0
A81: Pumpe inkl. stigrør og forerørsforsejlinger mv. - 74 | B81: m³/h | C81: 15 | D81: 0 | E81: 0
A82: Pumpe inkl. stigrør og forerørsforsejlinger mv. - 75 | B82: m³/h | C82: 15 | D82: 0 | E82: 0
A83: Pumpe inkl. stigrør og forerørsforsejlinger mv. - 76 | B83: m³/h | C83: 15 | D83: 0 | E83: 0
A84: Pumpe inkl. stigrør og forerørsforsejlinger mv. - 77 | B84: m³/h | C84: 15 | D84: 0 | E84: 0
A85: Pumpe inkl. stigrør og forerørsforsejlinger mv. - 78 | B85: m³/h | C85: 15 | D85: 0 | E85: 0
A86: Pumpe inkl. stigrør og forerørsforsejlinger mv. - 79 | B86: m³/h | C86: 15 | D86: 0 | E86: 0
A87: Pumpe inkl. stigrør og forerørsforsejlinger mv. - 80 | B87: m³/h | C87: 15 | D87: 0 | E87: 0
A88: Pumpe inkl. stigrør og forerørsforsejlinger mv. - 81 | B88: m³/h | C88: 15 | D88: 0 | E88: 0
A89: Pumpe inkl. stigrør og forerørsforsejlinger mv. - 82 | B89: m³/h | C89: 15 | D89: 0 | E89: 0
A90: Pumpe inkl. stigrør og forerørsforsejlinger mv. - 83 | B90: m³/h | C90: 15 | D90: 0 | E90: 0
A91: Pumpe inkl. stigrør og forerørsforsejlinger mv. - 84 | B91: m³/h | C91: 15 | D91: 0 | E91: 0
A92: Pumpe inkl. stigrør og forerørsforsejlinger mv. - 85 | B92: m³/h | C92: 15 | D92: 0 | E92: 0
A93: Pumpe inkl. stigrør og forerørsforsejlinger mv. - 86 | B93: m³/h | C93: 15 | D93: 0 | E93: 0
A94: Pumpe inkl. stigrør og forerørsforsejlinger mv. - 87 | B94: m³/h | C94: 15 | D94: 0 | E94: 0
A95: Pumpe inkl. stigrør og forerørsforsejlinger mv. - 88 | B95: m³/h | C95: 15 | D95: 0 | E95: 0
A96: Pumpe inkl. stigrør og forerørsforsejlinger mv. - 89 | B96: m³/h | C96: 15 | D96: 0 | E96: 0
A97: Pumpe inkl. stigrør og forerørsforsejlinger mv. - 90 | B97: m³/h | C97: 15 | D97: 0 | E97: 0
A98: Erstatninger (OBS ingen øst-tillæg eller øvrige tillæg) | B98: stk. | C98: 30 | D98: 35 | E98: 35
A99: Hegn | B99: stk. | C99: 15 | D99: 0 | E99: 0
A100: Elanlæg | B100: boring | C100: 20 | D100: 35 | E100: 35
A101: SRO anlæg | B101: boring | C101: 10 | D101: 35 | E101: 35
A102: Råvandsledninger - Land
A103: Ø 50mm < Ledningsnet ≤ Ø110 mm | B103: meter | C103: 75 | D103: 19 | E103: 19
A104: Ø110 mm < Ledningsnet ≤ Ø 250 mm | B104: meter | C104: 75 | D104: 3593 | E104: 3593
A105: Ø 250 mm < Ledningsnet ≤ Ø 500mm | B105: meter | C105: 75 | D105: =2718+117 -> 2835 | E105: =2718+117 -> 2835
A106: Ledningsnet > Ø 500 mm | B106: meter | C106: 75 | D106: 0 | E106: 0
A107: Råvandsledninger - By
A108: Ø 50mm < Ledningsnet ≤ Ø110 mm | B108: meter | C108: 75 | D108: =1038-9 -> 1029 | E108: =1038-9 -> 1029
A109: Ø110 mm < Ledningsnet ≤ Ø 250 mm | B109: meter | C109: 75 | D109: =9250+271-957 -> 8564 | E109: =9250+271-957 -> 8564
A110: Ø 250 mm < Ledningsnet ≤ Ø 500mm | B110: meter | C110: 75 | D110: =3677-49 -> 3628 | E110: =3677-49 -> 3628
A111: Ledningsnet > Ø 500 mm | B111: meter | C111: 75 | D111: 0 | E111: 0
A112: Råvandsledninger - City
A113: Ø 50mm < Ledningsnet ≤ Ø110 mm | B113: meter | C113: 75 | D113: 0 | E113: 0
A114: Ø110 mm < Ledningsnet ≤ Ø 250 mm | B114: meter | C114: 75 | D114: =593+700 -> 1293 | E114: =593+700 -> 1293
A115: Ø 250 mm < Ledningsnet ≤ Ø 500mm | B115: meter | C115: 75 | D115: 0 | E115: 0
A116: Ledningsnet > Ø 500 mm | B116: meter | C116: 75 | D116: 0 | E116: 0
A117: Vandværk 1
A118: Beluftningsanlæg, iltningstrappe, Konstruktioner | B118: m³/h | C118: 50 | D118: 0 | E118: 0
A119: Beluftningsanlæg, iltningstrappe, Mek./EL | B119: m³/h | C119: 25 | D119: 0 | E119: 0
A120: Beluftningsanlæg, ika-beluftning, Konstruktioner | B120: m³/h | C120: 50 | D120: 0 | E120: 0
A121: Beluftningsanlæg, ika-beluftning, Mek./EL | B121: m³/h | C121: 25 | D121: 0 | E121: 0
A122: Beluftningsanlæg, bundbeluftbning, Konstruktioner | B122: m³/h | C122: 50 | D122: 0 | E122: 0
A123: Beluftningsanlæg, bundbeluftbning, Mek./EL | B123: m³/h | C123: 25 | D123: 0 | E123: 0
A124: Beluftningsanlæg, rislebakke, Konstruktioner | B124: m³/h | C124: 50 | D124: 0 | E124: 0
A125: Beluftningsanlæg, rislebakke, Mek./EL | B125: m³/h | C125: 25 | D125: 0 | E125: 0
A126: Beluftningsanlæg, kompressorbeluftning | B126: m³/h | C126: 25 | D126: 0 | E126: 0
A127: Beluftningsanlæg, ren ilt | B127: m³/h | C127: 25 | D127: 200 | E127: 200
A128: Behandlingsanlæg, kalk anlæg | B128: m³/h | C128: 25 | D128: 0 | E128: 0
A129: Behandlingsanlæg, luddosering | B129: m³/h | C129: 25 | D129: 0 | E129: 0
A130: Filteranlæg, åbne filtre, enkelt filtrering, Konstruktioner | B130: m³/h | C130: 50 | D130: 0 | E130: 0
A131: Filteranlæg, åbne filtre, enkelt filtrering, Mek./EL | B131: m³/h | C131: 25 | D131: 0 | E131: 0
A132: Filteranlæg, åbne filtre, dobbelt filtrering, Konstruktioner | B132: m³/h | C132: 50 | D132: 0 | E132: 0
A133: Filteranlæg, åbne filtre, dobbelt filtrering, Mek./EL | B133: m³/h | C133: 25 | D133: 0 | E133: 0
A134: Filteranlæg, trykfiltre, enkelt filtrering | B134: m³/h | C134: 25 | D134: 200 | E134: 200
A135: Filteranlæg, trykfiltre, dobbelt filtrering | B135: m³/h | C135: 25 | D135: 0 | E135: 0
A136: Rentvandsbeholder insitu støbt | B136: m³ | C136: 50 | D136: 3100 | E136: 3100
A137: Rentvandsbeholder element | B137: m³ | C137: 50 | D137: 0 | E137: 0
A138: Udpumpningsanlæg, rentvandspumper på vandværk | B138: m³/h | C138: 25 | D138: 700 | E138: 700
A139: Udpumpningsanlæg, frekvensomformer | B139: kW | C139: 25 | D139: 80 | E139: 80
A140: Udpumpningsanlæg, Hydrofor | B140: liter | C140: 25 | D140: 0 | E140: 0
A141: Skyllevand-/slamhåndteringsanlæg - lukkede betonbeholdere | B141: m³ | C141: 50 | D141: 0 | E141: 0
A142: Skyllevand-/slamhåndteringsanl. - åbne med faste sider/bund | B142: m³ | C142: 50 | D142: 80 | E142: 80
A143: Skyllevand-/slamhåndteringsanlæg - jordbassiner | B143: m³ | C143: 50 | D143: 0 | E143: 0
A144: Skyllevandsbehandling, inkl. UV-filter mv., Mek./EL | B144: m³/h. | C144: 25 | D144: 0 | E144: 0
A145: Skyllevandsbehandling, inkl. UV-filter mv., SRO | B145: m³/h. | C145: 10 | D145: 0 | E145: 0
A146: Nødstrømsanlæg på vandværk | B146: kW | C146: 25 | D146: 275 | E146: 275
A147: Elanlæg og SRO-anlæg - vandværk, Elanlæg | B147: m³/h. | C147: 25 | D147: 700 | E147: 700
A148: Elanlæg og SRO-anlæg - vandværk, SRO | B148: m³/h. | C148: 10 | D148: 700 | E148: 700
A149: Vandværk 2
A150: Beluftningsanlæg, iltningstrappe, Konstruktioner | B150: m³/h | C150: 50 | D150: 200 | E150: 200
A151: Beluftningsanlæg, iltningstrappe, Mek./EL | B151: m³/h | C151: 25 | D151: 0 | E151: 0
A152: Beluftningsanlæg, ika-beluftning, Konstruktioner | B152: m³/h | C152: 50 | D152: 0 | E152: 0
A153: Beluftningsanlæg, ika-beluftning, Mek./EL | B153: m³/h | C153: 25 | D153: 0 | E153: 0
A154: Beluftningsanlæg, bundbeluftbning, Konstruktioner | B154: m³/h | C154: 50 | D154: 0 | E154: 0
A155: Beluftningsanlæg, bundbeluftbning, Mek./EL | B155: m³/h | C155: 25 | D155: 0 | E155: 0
A156: Beluftningsanlæg, rislebakke, Konstruktioner | B156: m³/h | C156: 50 | D156: 0 | E156: 0
A157: Beluftningsanlæg, rislebakke, Mek./EL | B157: m³/h | C157: 25 | D157: 0 | E157: 0
A158: Beluftningsanlæg, kompressorbeluftning | B158: m³/h | C158: 25 | D158: 0 | E158: 0
A159: Beluftningsanlæg, ren ilt | B159: m³/h | C159: 25 | D159: 0 | E159: 0
A160: Behandlingsanlæg, kalk anlæg | B160: m³/h | C160: 25 | D160: 130 | E160: 130
A161: Behandlingsanlæg, luddosering | B161: m³/h | C161: 25 | D161: 0 | E161: 0
A162: Filteranlæg, åbne filtre, enkelt filtrering, Konstruktioner | B162: m³/h | C162: 50 | D162: 130 | E162: 130
A163: Filteranlæg, åbne filtre, enkelt filtrering, Mek./EL | B163: m³/h | C163: 25 | D163: 0 | E163: 0
A164: Filteranlæg, åbne filtre, dobbelt filtrering, Konstruktioner | B164: m³/h | C164: 50 | D164: 0 | E164: 0
A165: Filteranlæg, åbne filtre, dobbelt filtrering, Mek./EL | B165: m³/h | C165: 25 | D165: 0 | E165: 0
A166: Filteranlæg, trykfiltre, enkelt filtrering | B166: m³/h | C166: 25 | D166: 0 | E166: 0
A167: Filteranlæg, trykfiltre, dobbelt filtrering | B167: m³/h | C167: 25 | D167: 0 | E167: 0
A168: Rentvandsbeholder insitu støbt | B168: m³ | C168: 50 | D168: 1000 | E168: 1000
A169: Rentvandsbeholder element | B169: m³ | C169: 50 | D169: 0 | E169: 0
A170: Udpumpningsanlæg, rentvandspumper på vandværk | B170: m³/h | C170: 25 | D170: 250 | E170: 250
A171: Udpumpningsanlæg, frekvensomformer | B171: kW | C171: 25 | D171: 30 | E171: 30
A172: Udpumpningsanlæg, Hydrofor | B172: liter | C172: 25 | D172: 0 | E172: 0
A173: Skyllevand-/slamhåndteringsanlæg - lukkede betonbeholdere | B173: m³ | C173: 50 | D173: 0 | E173: 0
A174: Skyllevand-/slamhåndteringsanl. - åbne med faste sider/bund | B174: m³ | C174: 50 | D174: 15 | E174: 15
A175: Skyllevand-/slamhåndteringsanlæg - jordbassiner | B175: m³ | C175: 50 | D175: 0 | E175: 0
A176: Skyllevandsbehandling, inkl. UV-filter mv., Mek./EL | B176: m³/h. | C176: 25 | D176: 0 | E176: 0
A177: Skyllevandsbehandling, inkl. UV-filter mv., SRO | B177: m³/h. | C177: 10 | D177: 0 | E177: 0
A178: Nødstrømsanlæg på vandværk | B178: kW | C178: 25 | D178: 100 | E178: 100
A179: Elanlæg og SRO-anlæg - vandværk, Elanlæg | B179: m³/h. | C179: 25 | D179: 250 | E179: 250
A180: Elanlæg og SRO-anlæg - vandværk, SRO | B180: m³/h. | C180: 10 | D180: 250 | E180: 250
A181: Vandværk 3
A182: Beluftningsanlæg, iltningstrappe, Konstruktioner | B182: m³/h | C182: 50 | D182: 0 | E182: 0
A183: Beluftningsanlæg, iltningstrappe, Mek./EL | B183: m³/h | C183: 25 | D183: 0 | E183: 0
A184: Beluftningsanlæg, ika-beluftning, Konstruktioner | B184: m³/h | C184: 50 | D184: 0 | E184: 0
A185: Beluftningsanlæg, ika-beluftning, Mek./EL | B185: m³/h | C185: 25 | D185: 0 | E185: 0
A186: Beluftningsanlæg, bundbeluftbning, Konstruktioner | B186: m³/h | C186: 50 | D186: 0 | E186: 0
A187: Beluftningsanlæg, bundbeluftbning, Mek./EL | B187: m³/h | C187: 25 | D187: 0 | E187: 0
A188: Beluftningsanlæg, rislebakke, Konstruktioner | B188: m³/h | C188: 50 | D188: 0 | E188: 0
A189: Beluftningsanlæg, rislebakke, Mek./EL | B189: m³/h | C189: 25 | D189: 0 | E189: 0
A190: Beluftningsanlæg, kompressorbeluftning | B190: m³/h | C190: 25 | D190: 0 | E190: 0
A191: Beluftningsanlæg, ren ilt | B191: m³/h | C191: 25 | D191: 0 | E191: 0
A192: Behandlingsanlæg, kalk anlæg | B192: m³/h | C192: 25 | D192: 0 | E192: 0
A193: Behandlingsanlæg, luddosering | B193: m³/h | C193: 25 | D193: 0 | E193: 0
A194: Filteranlæg, åbne filtre, enkelt filtrering, Konstruktioner | B194: m³/h | C194: 50 | D194: 0 | E194: 0
A195: Filteranlæg, åbne filtre, enkelt filtrering, Mek./EL | B195: m³/h | C195: 25 | D195: 0 | E195: 0
A196: Filteranlæg, åbne filtre, dobbelt filtrering, Konstruktioner | B196: m³/h | C196: 50 | D196: 0 | E196: 0
A197: Filteranlæg, åbne filtre, dobbelt filtrering, Mek./EL | B197: m³/h | C197: 25 | D197: 0 | E197: 0
A198: Filteranlæg, trykfiltre, enkelt filtrering | B198: m³/h | C198: 25 | D198: 0 | E198: 0
A199: Filteranlæg, trykfiltre, dobbelt filtrering | B199: m³/h | C199: 25 | D199: 0 | E199: 0
A200: Rentvandsbeholder insitu støbt | B200: m³ | C200: 50 | D200: 0 | E200: 0
A201: Rentvandsbeholder element | B201: m³ | C201: 50 | D201: 0 | E201: 0
... 859 more rows

Sheet Distributionsanlæg
A1: Distributionsanlæg | B1: Enhed | C1: Standard-levetid | D1: Samlet mængde per 31/12-2014 | E1: Samlet mængde per 31/12-2015 | F1: Bemærk-ninger
A3: Ledningsnet - Land
A4: Ledningsnet ≤ Ø50 mm | B4: meter | C4: 75 | D4: =1602+1043 -> 2645 | E4: =+D4 -> 2645
A5: Ø 50mm < Ledningsnet ≤ Ø110 mm | B5: meter | C5: 75 | D5: =4345+422-5 -> 4762 | E5: =4762+694 -> 5456
A6: Ø110 mm < Ledningsnet ≤ Ø 250 mm | B6: meter | C6: 75 | D6: =1900-175 -> 1725 | E6: =+D6 -> 1725
A7: Ø 250 mm < Ledningsnet ≤ Ø 500mm | B7: meter | C7: 75 | D7: =356-154 -> 202 | E7: =+D7 -> 202
A8: Ledningsnet > Ø 500 mm | B8: meter | C8: 75 | D8: 0
A9: Støbejernsledninger ≤ Ø50 mm | B9: meter | C9: 100 | D9: 0
A10: Støbejernsledninger Ø 50mm < Ledningsnet ≤ Ø110 mm | B10: meter | C10: 100 | D10: 0
A11: Støbejernsledninger Ø110 mm < Ledningsnet ≤ Ø 250 mm | B11: meter | C11: 100 | D11: 0
A12: Støbejernsledninger Ø 250 mm < Ledningsnet ≤ Ø 500mm | B12: meter | C12: 100 | D12: 0
A13: Støbejernsledninger Ledningsnet > Ø 500 mm | B13: meter | C13: 100 | D13: 0
A14: Eternitledninger ≤ Ø50 mm | B14: meter | C14: 75 | D14: 0
A15: Eternitledninger Ø 50mm < Ledningsnet ≤ Ø110 mm | B15: meter | C15: 75 | D15: 0
A16: Eternitledninger Ø110 mm < Ledningsnet ≤ Ø 250 mm | B16: meter | C16: 75 | D16: 0
A17: Eternitledninger Ø 250 mm < Ledningsnet ≤ Ø 500mm | B17: meter | C17: 75 | D17: 0
A18: Eternitledninger Ledningsnet > Ø 500 mm | B18: meter | C18: 75 | D18: 0
A19: Skelbrønd, Konstruktioner | B19: stk. | C19: 50 | D19: =53+4-2-3 -> 52 | E19: =+D19 -> 52
A20: Skelbrønd, Mek./EL | B20: stk. | C20: 15 | D20: 0
A21: Inspektionsbrønd, Konstruktioner | B21: stk. | C21: 50 | D21: 0
A22: Inspektionsbrønd, Mek./EL | B22: stk. | C22: 15 | D22: 0
A23: Stik på ledningsnet, Konstruktioner | B23: stk. | C23: 75 | D23: 138 | E23: 54
A24: Stik på ledningsnet, Mek./EL | B24: stk. | C24: 75 | D24: 0
A25: Ledningsnet - By
A26: Ledningsnet ≤ Ø50 mm | B26: meter | C26: 75 | D26: =18891+574 -> 19465 | E26: =+D26+21+70+15+83+67+53-31+30+96-198+13+45+39-38+117+146+68 -> 20061
A27: Ø 50mm < Ledningsnet ≤ Ø110 mm | B27: meter | C27: 75 | D27: =86290+5686-3 -> 91973 | E27: =+D27+259+102+189+332-108-272-51+222+60-370-159+65+190-119+82-145+1034+261-265+93+393-108+19+397+235+809+186 -> 95304
A28: Ø110 mm < Ledningsnet ≤ Ø 250 mm | B28: meter | C28: 75 | D28: =47320+3803 -> 51123 | E28: =+D28+625+142-211+46 -> 51725
A29: Ø 250 mm < Ledningsnet ≤ Ø 500mm | B29: meter | C29: 75 | D29: =11522+610-379 -> 11753 | E29: =+D29 -> 11753
A30: Ledningsnet > Ø 500 mm | B30: meter | C30: 75 | D30: 0 | E30: 0
A31: Støbejernsledninger ≤ Ø50 mm | B31: meter | C31: 100 | D31: =7965-109-733 -> 7123 | E31: =+D31-155-23-15-136 -> 6794
A32: Støbejernsledninger Ø 50mm < Ledningsnet ≤ Ø110 mm | B32: meter | C32: 100 | D32: =21919-969-3088 -> 17862 | E32: =+D32-86-13-1-272-21-958 -> 16511
A33: Støbejernsledninger Ø110 mm < Ledningsnet ≤ Ø 250 mm | B33: meter | C33: 100 | D33: =6589-1071-2-815 -> 4701 | E33: =+D33-292-24-315 -> 4070
A34: Støbejernsledninger Ø 250 mm < Ledningsnet ≤ Ø 500mm | B34: meter | C34: 100 | D34: 0
A35: Støbejernsledninger Ledningsnet > Ø 500 mm | B35: meter | C35: 100 | D35: 0
A36: Eternitledninger ≤ Ø50 mm | B36: meter | C36: 75 | D36: 0
A37: Eternitledninger Ø 50mm < Ledningsnet ≤ Ø110 mm | B37: meter | C37: 75 | D37: 106 | E37: =+D37 -> 106
A38: Eternitledninger Ø110 mm < Ledningsnet ≤ Ø 250 mm | B38: meter | C38: 75 | D38: 0
A39: Eternitledninger Ø 250 mm < Ledningsnet ≤ Ø 500mm | B39: meter | C39: 75 | D39: 0
A40: Eternitledninger Ledningsnet > Ø 500 mm | B40: meter | C40: 75 | D40: 0
A41: Skelbrønd, Konstruktioner | B41: stk. | C41: 50 | D41: =8609+1024-7+30-874 -> 8782 | E41: =+D41 -> 8782
A42: Skelbrønd, Mek./EL | B42: stk. | C42: 15 | D42: 0
A43: Inspektionsbrønd, Konstruktioner | B43: stk. | C43: 50 | D43: 0
A44: Inspektionsbrønd, Mek./EL | B44: stk. | C44: 15 | D44: 0
A45: Stik på ledningsnet, Konstruktioner | B45: stk. | C45: 75 | D45: 6287 | E45: 7761
A46: Stik på ledningsnet, Mek./EL | B46: stk. | C46: 75 | D46: 0
A47: Ledningsnet - City
A48: Ledningsnet ≤ Ø50 mm | B48: meter | C48: 75 | D48: =2456+296 -> 2752 | E48: =+D48 -> 2752
A49: Ø 50mm < Ledningsnet ≤ Ø110 mm | B49: meter | C49: 75 | D49: =11917+1130-332 -> 12715 | E49: =+D49 -> 12715
A50: Ø110 mm < Ledningsnet ≤ Ø 250 mm | B50: meter | C50: 75 | D50: =10673+728-1433-168 -> 9800 | E50: =+D50 -> 9800
A51: Ø 250 mm < Ledningsnet ≤ Ø 500mm | B51: meter | C51: 75 | D51: 2330 | E51: 2330
A52: Ledningsnet > Ø 500 mm | B52: meter | C52: 75 | D52: 0 | E52: 0
A53: Støbejernsledninger ≤ Ø50 mm | B53: meter | C53: 100 | D53: 0 | E53: 0
A54: Støbejernsledninger Ø 50mm < Ledningsnet ≤ Ø110 mm | B54: meter | C54: 100 | D54: =165-165 -> 0 | E54: 0
A55: Støbejernsledninger Ø110 mm < Ledningsnet ≤ Ø 250 mm | B55: meter | C55: 100 | D55: 0 | E55: 0
A56: Støbejernsledninger Ø 250 mm < Ledningsnet ≤ Ø 500mm | B56: meter | C56: 100 | D56: 0 | E56: 0
A57: Støbejernsledninger Ledningsnet > Ø 500 mm | B57: meter | C57: 100 | D57: 0 | E57: 0
A58: Eternitledninger ≤ Ø50 mm | B58: meter | C58: 75 | D58: 0 | E58: 0
A59: Eternitledninger Ø 50mm < Ledningsnet ≤ Ø110 mm | B59: meter | C59: 75 | D59: 0 | E59: 0
A60: Eternitledninger Ø110 mm < Ledningsnet ≤ Ø 250 mm | B60: meter | C60: 75 | D60: 0 | E60: 0
A61: Eternitledninger Ø 250 mm < Ledningsnet ≤ Ø 500mm | B61: meter | C61: 75 | D61: 0 | E61: 0
A62: Eternitledninger Ledningsnet > Ø 500 mm | B62: meter | C62: 75 | D62: 0 | E62: 0
A63: Skelbrønd, Konstruktioner | B63: stk. | C63: 50 | D63: =1018+250-1+7-136 -> 1138 | E63: 1138
A64: Skelbrønd, Mek./EL | B64: stk. | C64: 15 | D64: 0 | E64: 0
A65: Inspektionsbrønd, Konstruktioner | B65: stk. | C65: 50 | D65: 0 | E65: 0
A66: Inspektionsbrønd, Mek./EL | B66: stk. | C66: 15 | D66: 0 | E66: 0
A67: Stik på ledningsnet, Konstruktioner | B67: stk. | C67: 75 | D67: 3170 | E67: 2203
A68: Stik på ledningsnet, Mek./EL | B68: stk. | C68: 75 | D68: 0
A69: Ledningsnet - Indre city
A70: Ledningsnet ≤ Ø50 mm | B70: meter | C70: 75 | D70: 0
A71: Ø 50mm < Ledningsnet ≤ Ø110 mm | B71: meter | C71: 75 | D71: 0
A72: Ø110 mm < Ledningsnet ≤ Ø 250 mm | B72: meter | C72: 75 | D72: 0
A73: Ø 250 mm < Ledningsnet ≤ Ø 500mm | B73: meter | C73: 75 | D73: 0
A74: Ledningsnet > Ø 500 mm | B74: meter | C74: 75 | D74: 0
A75: Støbejernsledninger ≤ Ø50 mm | B75: meter | C75: 100 | D75: 0
A76: Støbejernsledninger Ø 50mm < Ledningsnet ≤ Ø110 mm | B76: meter | C76: 100 | D76: 0
A77: Støbejernsledninger Ø110 mm < Ledningsnet ≤ Ø 250 mm | B77: meter | C77: 100 | D77: 0
A78: Støbejernsledninger Ø 250 mm < Ledningsnet ≤ Ø 500mm | B78: meter | C78: 100 | D78: 0
A79: Støbejernsledninger Ledningsnet > Ø 500 mm | B79: meter | C79: 100 | D79: 0
A80: Eternitledninger ≤ Ø50 mm | B80: meter | C80: 75 | D80: 0
A81: Eternitledninger Ø 50mm < Ledningsnet ≤ Ø110 mm | B81: meter | C81: 75 | D81: 0
A82: Eternitledninger Ø110 mm < Ledningsnet ≤ Ø 250 mm | B82: meter | C82: 75 | D82: 0
A83: Eternitledninger Ø 250 mm < Ledningsnet ≤ Ø 500mm | B83: meter | C83: 75 | D83: 0
A84: Eternitledninger Ledningsnet > Ø 500 mm | B84: meter | C84: 75 | D84: 0
A85: Skelbrønd, Konstruktioner | B85: stk. | C85: 50 | D85: 0
A86: Skelbrønd, Mek./EL | B86: stk. | C86: 15 | D86: 0
A87: Inspektionsbrønd, Konstruktioner | B87: stk. | C87: 50 | D87: 0
A88: Inspektionsbrønd, Mek./EL | B88: stk. | C88: 15 | D88: 0
A89: Stik på ledningsnet, Konstruktioner | B89: stk. | C89: 75 | D89: 0
A90: Stik på ledningsnet, Mek./EL | B90: stk. | C90: 75 | D90: 0
A91: Ventiler
A92: Ventiler på ledningsnet ≤ Ø50 mm | B92: stk. | C92: 75 | D92: =218+7+1-14-4 -> 208 | E92: =+D92-1-4+1 -> 204
A93: Ventiler på Ø 50mm < Ledningsnet ≤ Ø110 mm | B93: stk. | C93: 75 | D93: =823+14+75+8-3-81-12 -> 824 | E93: =+D93+1+6-5+1-1+2-4+1-2+5-3+1-2+1+1 -> 826
A94: Ventiler på Ø110 mm < Ledningsnet ≤ Ø 250 mm | B94: stk. | C94: 75 | D94: =500+8+21+4-18-8 -> 507 | E94: =+D94+2-2+1 -> 508
A95: Ventiler på Ø 250 mm < Ledningsnet ≤ Ø 500mm | B95: stk. | C95: 75 | D95: =129+2-2-5 -> 124 | E95: =+D95 -> 124
A96: Ventiler på ledningsnet > Ø 500 mm | B96: stk. | C96: 75 | D96: 0
A97: Pumpestationer, bygværker og bassiner 1
A98: Pumpestation (inkl. evt. hydrofor)/trykforøger, Konstruktioner | B98: m³/h | C98: 50 | D98: 150 | E98: 150
A99: Pumpestation (inkl. evt. hydrofor)/trykforøger, Mek./EL | B99: m³/h | C99: 25 | D99: 150 | E99: 150
A100: Pumpestation (inkl. evt. hydrofor)/trykforøger, SRO | B100: m³/h | C100: 10 | D100: 150 | E100: 150
A101: Beholderanlæg - højdebeholder | B101: m³ | C101: 50 | D101: 0 | E101: 0
A102: Beholderanlæg - vandtårn | B102: m³ | C102: 50 | D102: 0 | E102: 0
A103: Pumpestationer, bygværker og bassiner 2
A104: Pumpestation (inkl. evt. hydrofor)/trykforøger, Konstruktioner | B104: m³/h | C104: 50 | D104: 15 | E104: 15
A105: Pumpestation (inkl. evt. hydrofor)/trykforøger, Mek./EL | B105: m³/h | C105: 25 | D105: 15 | E105: 15
A106: Pumpestation (inkl. evt. hydrofor)/trykforøger, SRO | B106: m³/h | C106: 10 | D106: 15 | E106: 15
A107: Beholderanlæg - højdebeholder | B107: m³ | C107: 50 | D107: 0 | E107: 0
A108: Beholderanlæg - vandtårn | B108: m³ | C108: 50 | D108: 0 | E108: 0
A109: Pumpestationer, bygværker og bassiner 3
A110: Pumpestation (inkl. evt. hydrofor)/trykforøger, Konstruktioner | B110: m³/h | C110: 50 | D110: 400 | E110: 400
A111: Pumpestation (inkl. evt. hydrofor)/trykforøger, Mek./EL | B111: m³/h | C111: 25 | D111: 400 | E111: 400
A112: Pumpestation (inkl. evt. hydrofor)/trykforøger, SRO | B112: m³/h | C112: 10 | D112: 400 | E112: 400
A113: Beholderanlæg - højdebeholder | B113: m³ | C113: 50 | D113: 0
A114: Beholderanlæg - vandtårn | B114: m³ | C114: 50 | D114: 0
A115: Pumpestationer, bygværker og bassiner 4
A116: Pumpestation (inkl. evt. hydrofor)/trykforøger, Konstruktioner | B116: m³/h | C116: 50 | D116: 0 | E116: 0
A117: Pumpestation (inkl. evt. hydrofor)/trykforøger, Mek./EL | B117: m³/h | C117: 25 | D117: 250 | E117: 250
A118: Pumpestation (inkl. evt. hydrofor)/trykforøger, SRO | B118: m³/h | C118: 10 | D118: 250 | E118: 250
A119: Beholderanlæg - højdebeholder | B119: m³ | C119: 50 | D119: 0 | E119: 0
A120: Beholderanlæg - vandtårn | B120: m³ | C120: 50 | D120: 0 | E120: 0
A121: Pumpestationer, bygværker og bassiner 5
A122: Pumpestation (inkl. evt. hydrofor)/trykforøger, Konstruktioner | B122: m³/h | C122: 50 | D122: 0
A123: Pumpestation (inkl. evt. hydrofor)/trykforøger, Mek./EL | B123: m³/h | C123: 25 | D123: 0
A124: Pumpestation (inkl. evt. hydrofor)/trykforøger, SRO | B124: m³/h | C124: 10 | D124: 0
A125: Beholderanlæg - højdebeholder | B125: m³ | C125: 50 | D125: 0
A126: Beholderanlæg - vandtårn | B126: m³ | C126: 50 | D126: 0
A127: Pumpestationer, bygværker og bassiner 6
A128: Pumpestation (inkl. evt. hydrofor)/trykforøger, Konstruktioner | B128: m³/h | C128: 50 | D128: 0
A129: Pumpestation (inkl. evt. hydrofor)/trykforøger, Mek./EL | B129: m³/h | C129: 25 | D129: 0
A130: Pumpestation (inkl. evt. hydrofor)/trykforøger, SRO | B130: m³/h | C130: 10 | D130: 0
A131: Beholderanlæg - højdebeholder | B131: m³ | C131: 50 | D131: 0
A132: Beholderanlæg - vandtårn | B132: m³ | C132: 50 | D132: 0
A133: Pumpestationer, bygværker og bassiner 7
A134: Pumpestation (inkl. evt. hydrofor)/trykforøger, Konstruktioner | B134: m³/h | C134: 50 | D134: 0
A135: Pumpestation (inkl. evt. hydrofor)/trykforøger, Mek./EL | B135: m³/h | C135: 25 | D135: 0
A136: Pumpestation (inkl. evt. hydrofor)/trykforøger, SRO | B136: m³/h | C136: 10 | D136: 0
A137: Beholderanlæg - højdebeholder | B137: m³ | C137: 50 | D137: 0
A138: Beholderanlæg - vandtårn | B138: m³ | C138: 50 | D138: 0
A139: Pumpestationer, bygværker og bassiner 8
A140: Pumpestation (inkl. evt. hydrofor)/trykforøger, Konstruktioner | B140: m³/h | C140: 50 | D140: 0
A141: Pumpestation (inkl. evt. hydrofor)/trykforøger, Mek./EL | B141: m³/h | C141: 25 | D141: 0
A142: Pumpestation (inkl. evt. hydrofor)/trykforøger, SRO | B142: m³/h | C142: 10 | D142: 0
A143: Beholderanlæg - højdebeholder | B143: m³ | C143: 50 | D143: 0
A144: Beholderanlæg - vandtårn | B144: m³ | C144: 50 | D144: 0
A145: Pumpestationer, bygværker og bassiner 9
A146: Pumpestation (inkl. evt. hydrofor)/trykforøger, Konstruktioner | B146: m³/h | C146: 50 | D146: 0
A147: Pumpestation (inkl. evt. hydrofor)/trykforøger, Mek./EL | B147: m³/h | C147: 25 | D147: 0
A148: Pumpestation (inkl. evt. hydrofor)/trykforøger, SRO | B148: m³/h | C148: 10 | D148: 0
A149: Beholderanlæg - højdebeholder | B149: m³ | C149: 50 | D149: 0
A150: Beholderanlæg - vandtårn | B150: m³ | C150: 50 | D150: 0
A151: Pumpestationer, bygværker og bassiner 10
A152: Pumpestation (inkl. evt. hydrofor)/trykforøger, Konstruktioner | B152: m³/h | C152: 50 | D152: 0
A153: Pumpestation (inkl. evt. hydrofor)/trykforøger, Mek./EL | B153: m³/h | C153: 25 | D153: 0
A154: Pumpestation (inkl. evt. hydrofor)/trykforøger, SRO | B154: m³/h | C154: 10 | D154: 0
A155: Beholderanlæg - højdebeholder | B155: m³ | C155: 50 | D155: 0
A156: Beholderanlæg - vandtårn | B156: m³ | C156: 50 | D156: 0
A157: Pumpestationer, bygværker og bassiner 11
A158: Pumpestation (inkl. evt. hydrofor)/trykforøger, Konstruktioner | B158: m³/h | C158: 50 | D158: 0
A159: Pumpestation (inkl. evt. hydrofor)/trykforøger, Mek./EL | B159: m³/h | C159: 25 | D159: 0
A160: Pumpestation (inkl. evt. hydrofor)/trykforøger, SRO | B160: m³/h | C160: 10 | D160: 0
A161: Beholderanlæg - højdebeholder | B161: m³ | C161: 50 | D161: 0
A162: Beholderanlæg - vandtårn | B162: m³ | C162: 50 | D162: 0
A163: Pumpestationer, bygværker og bassiner 12
A164: Pumpestation (inkl. evt. hydrofor)/trykforøger, Konstruktioner | B164: m³/h | C164: 50 | D164: 0
A165: Pumpestation (inkl. evt. hydrofor)/trykforøger, Mek./EL | B165: m³/h | C165: 25 | D165: 0
A166: Pumpestation (inkl. evt. hydrofor)/trykforøger, SRO | B166: m³/h | C166: 10 | D166: 0
A167: Beholderanlæg - højdebeholder | B167: m³ | C167: 50 | D167: 0
A168: Beholderanlæg - vandtårn | B168: m³ | C168: 50 | D168: 0
A169: Pumpestationer, bygværker og bassiner 13
A170: Pumpestation (inkl. evt. hydrofor)/trykforøger, Konstruktioner | B170: m³/h | C170: 50 | D170: 0
A171: Pumpestation (inkl. evt. hydrofor)/trykforøger, Mek./EL | B171: m³/h | C171: 25 | D171: 0
A172: Pumpestation (inkl. evt. hydrofor)/trykforøger, SRO | B172: m³/h | C172: 10 | D172: 0
A173: Beholderanlæg - højdebeholder | B173: m³ | C173: 50 | D173: 0
A174: Beholderanlæg - vandtårn | B174: m³ | C174: 50 | D174: 0
A175: Pumpestationer, bygværker og bassiner 14
A176: Pumpestation (inkl. evt. hydrofor)/trykforøger, Konstruktioner | B176: m³/h | C176: 50 | D176: 0
A177: Pumpestation (inkl. evt. hydrofor)/trykforøger, Mek./EL | B177: m³/h | C177: 25 | D177: 0
A178: Pumpestation (inkl. evt. hydrofor)/trykforøger, SRO | B178: m³/h | C178: 10 | D178: 0
A179: Beholderanlæg - højdebeholder | B179: m³ | C179: 50 | D179: 0
A180: Beholderanlæg - vandtårn | B180: m³ | C180: 50 | D180: 0
A181: Pumpestationer, bygværker og bassiner 15
A182: Pumpestation (inkl. evt. hydrofor)/trykforøger, Konstruktioner | B182: m³/h | C182: 50 | D182: 0
A183: Pumpestation (inkl. evt. hydrofor)/trykforøger, Mek./EL | B183: m³/h | C183: 25 | D183: 0
A184: Pumpestation (inkl. evt. hydrofor)/trykforøger, SRO | B184: m³/h | C184: 10 | D184: 0
A185: Beholderanlæg - højdebeholder | B185: m³ | C185: 50 | D185: 0
A186: Beholderanlæg - vandtårn | B186: m³ | C186: 50 | D186: 0
A187: Pumpestationer, bygværker og bassiner 16
A188: Pumpestation (inkl. evt. hydrofor)/trykforøger, Konstruktioner | B188: m³/h | C188: 50 | D188: 0
A189: Pumpestation (inkl. evt. hydrofor)/trykforøger, Mek./EL | B189: m³/h | C189: 25 | D189: 0
A190: Pumpestation (inkl. evt. hydrofor)/trykforøger, SRO | B190: m³/h | C190: 10 | D190: 0
A191: Beholderanlæg - højdebeholder | B191: m³ | C191: 50 | D191: 0
A192: Beholderanlæg - vandtårn | B192: m³ | C192: 50 | D192: 0
A193: Pumpestationer, bygværker og bassiner 17
A194: Pumpestation (inkl. evt. hydrofor)/trykforøger, Konstruktioner | B194: m³/h | C194: 50 | D194: 0
A195: Pumpestation (inkl. evt. hydrofor)/trykforøger, Mek./EL | B195: m³/h | C195: 25 | D195: 0
A196: Pumpestation (inkl. evt. hydrofor)/trykforøger, SRO | B196: m³/h | C196: 10 | D196: 0
A197: Beholderanlæg - højdebeholder | B197: m³ | C197: 50 | D197: 0
A198: Beholderanlæg - vandtårn | B198: m³ | C198: 50 | D198: 0
A199: Pumpestationer, bygværker og bassiner 18
A200: Pumpestation (inkl. evt. hydrofor)/trykforøger, Konstruktioner | B200: m³/h | C200: 50 | D200: 0
A201: Pumpestation (inkl. evt. hydrofor)/trykforøger, Mek./EL | B201: m³/h | C201: 25 | D201: 0
... 112 more rows

Sheet Fællesfunktionsanlæg
A1: Fællesfunktionsanlæg | B1: Enhed | C1: Standard-levetid | D1: Samlet mængde per 31/12-2014 | E1: Samlet mængde per 31/12-2015 | F1: Bemærk-ninger
A3: Andre
A4: Køretøjer, personbil | B4: stk. | C4: 5 | D4: 7 | E4: 7
A5: Køretøjer, små lastvogne (< 3.500 kg.) | B5: stk. | C5: 5 | D5: 1 | E5: 1
A6: Køretøjer, store lastvogne (> 3.500 kg.) | B6: stk. | C6: 5 | D6: 0 | E6: 0
A7: Køretøjer, entreprenørmaskiner | B7: stk. | C7: 5 | D7: 3 | E7: 4
A8: Øvrige
A9: Solcelleanlæg | B9: KWh | C9: 25 | D9: 0 | E9: 0
A10: EDB, tablets og navigationsudstyr | B10: stk. | C10: 5 | D10: 20 | E10: 22
A11: Elektroniske kort | B11: stk. | C11: 5 | D11: 12 | E11: 12

Sheet Drop downliste (hidden)
B2: datakvalitet | C2: Serviceselskab | D2: Overheads | E2: Infrastrukturomlægninger | F2: Infrastruktur per år | G2: år 1 | H2: år 2 | I2: år 3 | J2: år 4 | K2: år 5
G3: 2010 | H3: 2011 | I3: 2012 | J3: 2013 | K3: 2014
B4: 1 | C4: ja | D4: Full-cost | E4: ja | F4: 0.1
B5: 2 | C5: nej | D5: Direct-cost | E5: nej | F5: 0.2
B6: 3 | D6: Nøgletalsfordeling | F6: 0.3
D7: Activity based cost | F7: 0.4
D8: Andet | F8: 0.5
F9: 0.6
F10: 0.7
F11: 0.8
F12: 0.9
F13: 1
